[Event "Late-Titled-Tuesday-Blitz-April-23-2024"]
[Site "Chess.com"]
[Date "2024.04.23"]
[Round "4"]
[White "PavlovDanila"]
[Black "Horokoskii"]
[Result "1-0"]
[WhiteElo "2497"]
[BlackElo "2177"]
[TimeControl "180+1"]
[EndTime "14:41:18 PDT"]
[Termination "PavlovDanila won on time"]

1. e4 {[%clk 0:02:59]} 1... c5 {[%clk 0:02:57.3]} 2. Nf3 {[%clk 0:02:58.4]} 2...
d6 {[%clk 0:02:56.8]} 3. d4 {[%clk 0:02:59]} 3... cxd4 {[%clk 0:02:56.5]} 4.
Nxd4 {[%clk 0:02:59.9]} 4... Nf6 {[%clk 0:02:55.5]} 5. Nc3 {[%clk 0:03:00.6]}
5... Nc6 {[%clk 0:02:55.7]} 6. Be3 {[%clk 0:03:00.5]} 6... g6 {[%clk 0:02:55.1]}
7. f3 {[%clk 0:03:00.3]} 7... h5 {[%clk 0:02:55.1]} 8. Qd2 {[%clk 0:03:00.5]}
8... Nxd4 {[%clk 0:02:54.4]} 9. Bxd4 {[%clk 0:03:00.1]} 9... Bh6 {[%clk
0:02:54.5]} 10. Be3 {[%clk 0:03:00.3]} 10... Bxe3 {[%clk 0:02:54.3]} 11. Qxe3
{[%clk 0:03:01.2]} 11... Be6 {[%clk 0:02:54.9]} 12. O-O-O {[%clk 0:03:00.2]}
12... Qa5 {[%clk 0:02:53.3]} 13. Kb1 {[%clk 0:02:55.2]} 13... Rc8 {[%clk
0:02:50.8]} 14. a3 {[%clk 0:02:55.2]} 14... a6 {[%clk 0:02:40.2]} 15. h4 {[%clk
0:02:46.2]} 15... Kf8 {[%clk 0:02:39]} 16. Ne2 {[%clk 0:02:31.5]} 16... Qc5
{[%clk 0:02:16.9]} 17. Qxc5 {[%clk 0:02:29.8]} 17... dxc5 {[%clk 0:02:12.6]} 18.
Nf4 {[%clk 0:02:26.9]} 18... Rc6 {[%clk 0:02:03.7]} 19. e5 {[%clk 0:02:20.7]}
19... Ne8 {[%clk 0:01:58.9]} 20. Nxe6+ {[%clk 0:02:02.1]} 20... Rxe6 {[%clk
0:01:58.1]} 21. f4 {[%clk 0:02:02.6]} 21... Kg7 {[%clk 0:01:56.7]} 22. Rd7
{[%clk 0:01:59.4]} 22... b5 {[%clk 0:01:48.4]} 23. g3 {[%clk 0:01:57.6]} 23...
f6 {[%clk 0:01:46.6]} 24. Bh3 {[%clk 0:01:57.4]} 24... f5 {[%clk 0:01:46.8]} 25.
Bg2 {[%clk 0:01:53.9]} 25... Kf8 {[%clk 0:01:39.3]} 26. Rb7 {[%clk 0:01:48.1]}
26... a5 {[%clk 0:01:18.8]} 27. Rxb5 {[%clk 0:01:38.7]} 27... Ra6 {[%clk
0:01:16.4]} 28. Rxc5 {[%clk 0:01:34.8]} 28... Kf7 {[%clk 0:01:13.7]} 29. Rc8
{[%clk 0:01:33.5]} 29... Rf8 {[%clk 0:01:11.7]} 30. Rd1 {[%clk 0:01:32.1]} 30...
Ng7 {[%clk 0:01:10.4]} 31. Bd5+ {[%clk 0:01:30.5]} 31... e6 {[%clk 0:01:09.4]}
32. Rc7+ {[%clk 0:01:28.3]} 32... Kg8 {[%clk 0:01:09.4]} 33. Bc4 {[%clk
0:01:28.1]} 33... Rb6 {[%clk 0:01:08.4]} 34. Rd6 {[%clk 0:01:20.5]} 34... Rfb8
{[%clk 0:00:58.9]} 35. b3 {[%clk 0:01:15.2]} 35... a4 {[%clk 0:00:55.6]} 36. b4
{[%clk 0:01:14.6]} 36... Kf8 {[%clk 0:00:48.9]} 37. Rxb6 {[%clk 0:00:35.8]}
37... Rxb6 {[%clk 0:00:47.4]} 38. Ba2 {[%clk 0:00:36.2]} 38... Rb8 {[%clk
0:00:41.9]} 39. Rd7 {[%clk 0:00:32.7]} 39... Rc8 {[%clk 0:00:37.3]} 40. c4
{[%clk 0:00:32.2]} 40... Ne8 {[%clk 0:00:34.1]} 41. c5 {[%clk 0:00:32.3]} 41...
Nc7 {[%clk 0:00:34.3]} 42. Bc4 {[%clk 0:00:30.6]} 42... Ke8 {[%clk 0:00:31.8]}
43. Rd6 {[%clk 0:00:30.7]} 43... Ke7 {[%clk 0:00:30]} 44. Kc2 {[%clk 0:00:29.8]}
44... Rb8 {[%clk 0:00:26.3]} 45. Kc3 {[%clk 0:00:28.3]} 45... Ne8 {[%clk
0:00:21.8]} 46. Rxe6+ {[%clk 0:00:28.1]} 46... Kd7 {[%clk 0:00:22.2]} 47. c6+
{[%clk 0:00:27.3]} 47... Kc7 {[%clk 0:00:22]} 48. b5 {[%clk 0:00:26.8]} 48...
Kb6 {[%clk 0:00:17.5]} 49. Kb4 {[%clk 0:00:24.5]} 49... Nc7 {[%clk 0:00:17.7]}
50. Rxg6 {[%clk 0:00:24.9]} 50... Rd8 {[%clk 0:00:17.1]} 51. Kxa4 {[%clk
0:00:24.8]} 51... Rd4 {[%clk 0:00:12.4]} 52. Kb4 {[%clk 0:00:24.6]} 52... Nd5+
{[%clk 0:00:13]} 53. Kb3 {[%clk 0:00:24.7]} 53... Nc7 {[%clk 0:00:12.5]} 54. a4
{[%clk 0:00:24.1]} 54... Rd1 {[%clk 0:00:10]} 55. Rg7 {[%clk 0:00:22.5]} 55...
Rg1 {[%clk 0:00:08.3]} 56. a5+ {[%clk 0:00:22.3]} 56... Kxa5 {[%clk 0:00:03]}
57. Rxc7 {[%clk 0:00:22.1]} 57... Rxg3+ {[%clk 0:00:02]} 58. Kc2 {[%clk
0:00:22.3]} 1-0

[Event "Late-Titled-Tuesday-Blitz-April-23-2024"]
[Site "Chess.com"]
[Date "2024.04.23"]
[Round "4"]
[White "tylityli"]
[Black "SipahiPower"]
[Result "0-1"]
[WhiteElo "2324"]
[BlackElo "2508"]
[TimeControl "180+1"]
[EndTime "14:41:19 PDT"]
[Termination "SipahiPower won by resignation"]

1. d4 {[%clk 0:02:45.6]} 1... e6 {[%clk 0:03:00]} 2. c4 {[%clk 0:02:45.1]} 2...
f5 {[%clk 0:03:00.6]} 3. Nc3 {[%clk 0:02:44.6]} 3... Nf6 {[%clk 0:03:01.3]} 4.
a3 {[%clk 0:02:43.3]} 4... b6 {[%clk 0:03:01.2]} 5. Bf4 {[%clk 0:02:43.5]} 5...
Bb7 {[%clk 0:03:01.6]} 6. e3 {[%clk 0:02:44.1]} 6... Bd6 {[%clk 0:03:02.1]} 7.
Nf3 {[%clk 0:02:41.8]} 7... O-O {[%clk 0:03:01.9]} 8. Bd3 {[%clk 0:02:41.2]}
8... Bxf4 {[%clk 0:02:59.5]} 9. exf4 {[%clk 0:02:41.1]} 9... Ne4 {[%clk
0:02:54.3]} 10. O-O {[%clk 0:02:38]} 10... Nxc3 {[%clk 0:02:51.4]} 11. bxc3
{[%clk 0:02:37.4]} 11... Qf6 {[%clk 0:02:50.4]} 12. Re1 {[%clk 0:02:29.9]} 12...
Qh6 {[%clk 0:02:38.1]} 13. g3 {[%clk 0:02:21]} 13... Nc6 {[%clk 0:02:25.2]} 14.
Bf1 {[%clk 0:02:16.9]} 14... Qh5 {[%clk 0:02:16.6]} 15. Bg2 {[%clk 0:02:16.2]}
15... Na5 {[%clk 0:02:16]} 16. Nd2 {[%clk 0:01:51.1]} 16... Qxd1 {[%clk
0:02:10.7]} 17. Raxd1 {[%clk 0:01:49.5]} 17... Bxg2 {[%clk 0:02:03]} 18. Kxg2
{[%clk 0:01:50.4]} 18... Kf7 {[%clk 0:02:03.7]} 19. Rb1 {[%clk 0:01:43.6]} 19...
Kf6 {[%clk 0:02:03.1]} 20. Re5 {[%clk 0:01:32]} 20... d6 {[%clk 0:01:58.6]} 21.
Re3 {[%clk 0:01:26]} 21... h6 {[%clk 0:01:58.2]} 22. h4 {[%clk 0:01:25.6]} 22...
g6 {[%clk 0:01:54.5]} 23. Rbe1 {[%clk 0:01:23.9]} 23... Rae8 {[%clk 0:01:54.3]}
24. f3 {[%clk 0:01:05.9]} 24... Re7 {[%clk 0:01:53.4]} 25. g4 {[%clk 0:01:05]}
25... Rfe8 {[%clk 0:01:49.9]} 26. g5+ {[%clk 0:01:03.7]} 26... Kf7 {[%clk
0:01:40.6]} 27. Rh1 {[%clk 0:00:47]} 27... h5 {[%clk 0:01:37.4]} 28. Rhe1 {[%clk
0:00:45.7]} 28... Rb8 {[%clk 0:01:36.3]} 29. Rb1 {[%clk 0:00:44.4]} 29... Ke8
{[%clk 0:01:34.9]} 30. d5 {[%clk 0:00:26]} 30... Kd7 {[%clk 0:01:32.3]} 31. Rbe1
{[%clk 0:00:23.3]} 31... Rbe8 {[%clk 0:01:32]} 32. Kf2 {[%clk 0:00:19.5]} 32...
Nb7 {[%clk 0:01:31.7]} 33. Nb3 {[%clk 0:00:18.6]} 33... e5 {[%clk 0:01:20.1]}
34. fxe5 {[%clk 0:00:17]} 34... dxe5 {[%clk 0:01:17.4]} 35. f4 {[%clk 0:00:16]}
35... e4 {[%clk 0:00:49.3]} 36. Nd4 {[%clk 0:00:10.1]} 36... Nd6 {[%clk
0:00:49.6]} 37. Nc6 {[%clk 0:00:09.7]} 37... Rf7 {[%clk 0:00:34.9]} 38. Ne5+
{[%clk 0:00:08.6]} 38... Ke7 {[%clk 0:00:29.2]} 39. Nxg6+ {[%clk 0:00:07.3]}
39... Kd8 {[%clk 0:00:26.7]} 40. Ne5 {[%clk 0:00:07.5]} 40... Rxe5 {[%clk
0:00:26.6]} 41. fxe5 {[%clk 0:00:07.2]} 41... Nxc4 {[%clk 0:00:27.5]} 42. e6
{[%clk 0:00:05.7]} 42... Rf8 {[%clk 0:00:22.5]} 43. Rxe4 {[%clk 0:00:03.9]}
43... fxe4+ {[%clk 0:00:21.8]} 44. Kg3 {[%clk 0:00:03.8]} 44... Rf3+ {[%clk
0:00:19.6]} 45. Kg2 {[%clk 0:00:03.6]} 45... Nd6 {[%clk 0:00:20.5]} 46. Rf1
{[%clk 0:00:02.2]} 46... Rxf1 {[%clk 0:00:20.2]} 47. Kxf1 {[%clk 0:00:03.1]}
47... Ke7 {[%clk 0:00:20.4]} 48. Ke2 {[%clk 0:00:03.6]} 48... Nf5 {[%clk
0:00:20.9]} 49. a4 {[%clk 0:00:02.5]} 49... a6 {[%clk 0:00:18.4]} 50. Kf2 {[%clk
0:00:02.5]} 50... Nxh4 {[%clk 0:00:16.2]} 51. Ke3 {[%clk 0:00:02.5]} 51... Nf3
{[%clk 0:00:16.5]} 52. Kxe4 {[%clk 0:00:02.8]} 52... Nxg5+ {[%clk 0:00:17.2]}
53. Kf5 {[%clk 0:00:03.3]} 53... Nxe6 {[%clk 0:00:16.1]} 54. dxe6 {[%clk
0:00:03]} 54... h4 {[%clk 0:00:17]} 55. Kg4 {[%clk 0:00:02.9]} 55... Kxe6 {[%clk
0:00:17.3]} 56. Kxh4 {[%clk 0:00:03.8]} 56... Kd5 {[%clk 0:00:18]} 57. Kg5
{[%clk 0:00:04.7]} 57... Kc4 {[%clk 0:00:18.7]} 58. Kf6 {[%clk 0:00:05.6]} 58...
Kxc3 {[%clk 0:00:19.4]} 59. Ke7 {[%clk 0:00:06.5]} 59... Kb4 {[%clk 0:00:19.7]}
60. Kd7 {[%clk 0:00:07.4]} 60... c5 {[%clk 0:00:19.9]} 61. Kc7 {[%clk
0:00:08.3]} 61... Ka5 {[%clk 0:00:20.5]} 62. Kc6 {[%clk 0:00:08.2]} 62... c4
{[%clk 0:00:21.4]} 63. Kd5 {[%clk 0:00:08.4]} 63... c3 {[%clk 0:00:22.3]} 64.
Kc4 {[%clk 0:00:09.3]} 64... c2 {[%clk 0:00:23.2]} 0-1

[Event "Late-Titled-Tuesday-Blitz-April-23-2024"]
[Site "Chess.com"]
[Date "2024.04.23"]
[Round "4"]
[White "dretch"]
[Black "Oleksandr_Bortnyk"]
[Result "1-0"]
[WhiteElo "2930"]
[BlackElo "3109"]
[TimeControl "180+1"]
[EndTime "14:41:23 PDT"]
[Termination "dretch won by resignation"]

1. d4 {[%clk 0:03:00.9]} 1... Nf6 {[%clk 0:02:52.9]} 2. c4 {[%clk 0:03:00.1]}
2... b6 {[%clk 0:02:53.3]} 3. Nc3 {[%clk 0:02:57.1]} 3... Bb7 {[%clk 0:02:53.9]}
4. Qc2 {[%clk 0:02:57.5]} 4... g6 {[%clk 0:02:53.5]} 5. e4 {[%clk 0:02:55.9]}
5... d6 {[%clk 0:02:54.2]} 6. Nf3 {[%clk 0:02:56.3]} 6... Bg7 {[%clk 0:02:54.5]}
7. Be2 {[%clk 0:02:56.8]} 7... O-O {[%clk 0:02:55.2]} 8. O-O {[%clk 0:02:57]}
8... c5 {[%clk 0:02:55.8]} 9. d5 {[%clk 0:02:56.5]} 9... e6 {[%clk 0:02:56.5]}
10. Bf4 {[%clk 0:02:44.8]} 10... exd5 {[%clk 0:02:55.5]} 11. cxd5 {[%clk
0:02:44.4]} 11... Re8 {[%clk 0:02:46.2]} 12. Rfe1 {[%clk 0:02:32.1]} 12... Na6
{[%clk 0:02:40.9]} 13. Bb5 {[%clk 0:02:26.1]} 13... Re7 {[%clk 0:02:39.4]} 14.
Rad1 {[%clk 0:02:20.2]} 14... Nc7 {[%clk 0:02:37.8]} 15. Bc6 {[%clk 0:02:19.1]}
15... Rb8 {[%clk 0:02:19.5]} 16. Bxd6 {[%clk 0:02:15.6]} 16... Qxd6 {[%clk
0:02:11.6]} 17. e5 {[%clk 0:02:15.7]} 17... Qd8 {[%clk 0:02:07.8]} 18. Bxb7
{[%clk 0:02:15.5]} 18... Rxb7 {[%clk 0:01:47.4]} 19. d6 {[%clk 0:02:14.7]} 19...
Nfe8 {[%clk 0:01:36.8]} 20. dxe7 {[%clk 0:02:02.1]} 20... Qxe7 {[%clk
0:01:37.7]} 21. Qe4 {[%clk 0:01:52.8]} 21... Rb8 {[%clk 0:01:37.7]} 22. Qc6
{[%clk 0:01:52.5]} 22... Qe6 {[%clk 0:01:32.7]} 23. Qxe6 {[%clk 0:01:51.3]}
23... Nxe6 {[%clk 0:01:33.6]} 24. Rd7 {[%clk 0:01:51.3]} 24... N8c7 {[%clk
0:01:30.3]} 25. Ng5 {[%clk 0:01:44]} 25... b5 {[%clk 0:01:24.5]} 26. Nxf7 {[%clk
0:01:33.6]} 26... b4 {[%clk 0:01:23.3]} 27. Ne4 {[%clk 0:01:33.7]} 27... c4
{[%clk 0:01:21.5]} 28. Nf6+ {[%clk 0:01:28.1]} 28... Kf8 {[%clk 0:01:16.5]} 29.
Ng5 {[%clk 0:01:10.8]} 29... Nxg5 {[%clk 0:01:13.4]} 30. Rxc7 {[%clk 0:01:10.1]}
30... Rd8 {[%clk 0:01:07.2]} 31. h4 {[%clk 0:01:03.9]} 31... Ne6 {[%clk
0:01:05.1]} 32. Rxc4 {[%clk 0:01:02.7]} 32... a5 {[%clk 0:01:05.3]} 33. Rec1
{[%clk 0:01:01.6]} 33... Rd2 {[%clk 0:01:03.3]} 34. R4c2 {[%clk 0:00:50]} 34...
Rd4 {[%clk 0:00:56.8]} 35. g3 {[%clk 0:00:48]} 35... h5 {[%clk 0:00:57]} 36. Kg2
{[%clk 0:00:43.9]} 36... Kf7 {[%clk 0:00:55.8]} 37. Rc4 {[%clk 0:00:39]} 37...
Rd3 {[%clk 0:00:52.2]} 38. R1c2 {[%clk 0:00:33.6]} 38... Rd1 {[%clk 0:00:45.5]}
39. Rc6 {[%clk 0:00:32.1]} 39... Nd4 {[%clk 0:00:37.4]} 40. Rd6 {[%clk
0:00:31.6]} 40... Nxc2 {[%clk 0:00:28.1]} 41. Rxd1 {[%clk 0:00:32.5]} 41... Ke6
{[%clk 0:00:28.5]} 42. Rd2 {[%clk 0:00:25.7]} 42... Ne1+ {[%clk 0:00:28.8]} 43.
Kf1 {[%clk 0:00:22.8]} 43... Nf3 {[%clk 0:00:29.7]} 44. Rd1 {[%clk 0:00:17.4]}
44... Nxe5 {[%clk 0:00:28.4]} 45. Ne4 {[%clk 0:00:17.4]} 45... a4 {[%clk
0:00:27.6]} 46. Nc5+ {[%clk 0:00:16.4]} 46... Kf5 {[%clk 0:00:26.4]} 47. Nxa4
{[%clk 0:00:17.3]} 47... Nc4 {[%clk 0:00:19.4]} 48. b3 {[%clk 0:00:16.7]} 48...
Na3 {[%clk 0:00:20.1]} 49. Nc5 {[%clk 0:00:16.6]} 49... Bc3 {[%clk 0:00:17.6]}
50. Rd5+ {[%clk 0:00:15.2]} 50... Kf6 {[%clk 0:00:12.6]} 51. Ne4+ {[%clk
0:00:15.3]} 51... Ke6 {[%clk 0:00:13.3]} 52. Rc5 {[%clk 0:00:14.9]} 52... Bd4
{[%clk 0:00:12.5]} 53. Rg5 {[%clk 0:00:14.1]} 53... Nb1 {[%clk 0:00:11.7]} 54.
Ke2 {[%clk 0:00:13.1]} 54... Bb2 {[%clk 0:00:06.8]} 55. Kd3 {[%clk 0:00:13]}
55... Kf7 {[%clk 0:00:06.5]} 56. Rb5 {[%clk 0:00:12.5]} 56... Ba3 {[%clk
0:00:06.8]} 57. Rb7+ {[%clk 0:00:12.6]} 57... Ke6 {[%clk 0:00:07.1]} 58. Rb6+
{[%clk 0:00:13.5]} 58... Kf5 {[%clk 0:00:07.2]} 59. Rb5+ {[%clk 0:00:13.2]}
59... Ke6 {[%clk 0:00:07.9]} 60. Kc2 {[%clk 0:00:13.7]} 60... Nc3 {[%clk
0:00:06.4]} 61. Nxc3 {[%clk 0:00:14.1]} 61... bxc3 {[%clk 0:00:07.3]} 62. Kxc3
{[%clk 0:00:14.9]} 62... Bc1 {[%clk 0:00:07.3]} 63. Kd3 {[%clk 0:00:14.9]} 63...
Kf6 {[%clk 0:00:06.5]} 64. a4 {[%clk 0:00:15.8]} 64... g5 {[%clk 0:00:05.7]} 65.
a5 {[%clk 0:00:16.7]} 65... gxh4 {[%clk 0:00:06]} 66. gxh4 {[%clk 0:00:17.3]}
66... Kg6 {[%clk 0:00:05.2]} 67. a6 {[%clk 0:00:17.7]} 1-0

[Event "Late-Titled-Tuesday-Blitz-April-23-2024"]
[Site "Chess.com"]
[Date "2024.04.23"]
[Round "4"]
[White "malakismayil"]
[Black "Byniolus"]
[Result "0-1"]
[WhiteElo "2582"]
[BlackElo "2804"]
[TimeControl "180+1"]
[EndTime "14:41:26 PDT"]
[Termination "Byniolus won on time"]

1. e4 {[%clk 0:02:59.8]} 1... d6 {[%clk 0:02:58.7]} 2. d4 {[%clk 0:02:58.6]}
2... Nf6 {[%clk 0:02:57.5]} 3. Nc3 {[%clk 0:02:57.1]} 3... c6 {[%clk 0:02:57.9]}
4. Be3 {[%clk 0:02:54.8]} 4... Qb6 {[%clk 0:02:57.8]} 5. Qd2 {[%clk 0:02:51.9]}
5... Qxb2 {[%clk 0:02:56.9]} 6. Rb1 {[%clk 0:02:50.1]} 6... Qa3 {[%clk
0:02:57.3]} 7. Bc4 {[%clk 0:02:38.2]} 7... e6 {[%clk 0:02:56.9]} 8. Nge2 {[%clk
0:02:25.3]} 8... d5 {[%clk 0:02:55.3]} 9. Bd3 {[%clk 0:01:57.8]} 9... Be7 {[%clk
0:02:46.2]} 10. O-O {[%clk 0:01:49.3]} 10... dxe4 {[%clk 0:02:09.8]} 11. Nxe4
{[%clk 0:01:35.5]} 11... Nxe4 {[%clk 0:02:09.8]} 12. Bxe4 {[%clk 0:01:36.4]}
12... Nd7 {[%clk 0:02:09.7]} 13. c4 {[%clk 0:01:27.7]} 13... Nf6 {[%clk
0:02:08.8]} 14. Bd3 {[%clk 0:01:18.4]} 14... Qd6 {[%clk 0:02:05.4]} 15. Bf4
{[%clk 0:01:15]} 15... Qd7 {[%clk 0:02:00.8]} 16. Qc2 {[%clk 0:01:13.2]} 16...
b6 {[%clk 0:01:56.3]} 17. c5 {[%clk 0:01:09.3]} 17... b5 {[%clk 0:01:52.3]} 18.
Rfd1 {[%clk 0:01:02.7]} 18... h6 {[%clk 0:01:48.3]} 19. Nc3 {[%clk 0:00:52.1]}
19... O-O {[%clk 0:01:37]} 20. Be5 {[%clk 0:00:46.4]} 20... Rd8 {[%clk
0:01:24.8]} 21. h3 {[%clk 0:00:33.8]} 21... a5 {[%clk 0:01:14.2]} 22. Qe2 {[%clk
0:00:23.7]} 22... b4 {[%clk 0:00:34]} 23. Ne4 {[%clk 0:00:10]} 23... Ne8 {[%clk
0:00:24.1]} 24. Ng3 {[%clk 0:00:02.6]} 24... f6 {[%clk 0:00:22.7]} 25. Bf4
{[%clk 0:00:02.9]} 25... Nc7 {[%clk 0:00:16.8]} 26. Qe4 {[%clk 0:00:03]} 26...
f5 {[%clk 0:00:17.4]} 27. Qe3 {[%clk 0:00:02.7]} 27... Nd5 {[%clk 0:00:17.6]}
28. Qd2 {[%clk 0:00:02.5]} 28... Ba6 {[%clk 0:00:15.9]} 29. Bxa6 {[%clk
0:00:01.6]} 29... Rxa6 {[%clk 0:00:16.8]} 30. Be5 {[%clk 0:00:02.2]} 30... Nc3
{[%clk 0:00:10]} 31. Qd3 {[%clk 0:00:02.3]} 31... Raa8 {[%clk 0:00:09.4]} 32.
Rbc1 {[%clk 0:00:02.7]} 32... Nxd1 {[%clk 0:00:08.6]} 33. Rxd1 {[%clk
0:00:03.6]} 33... Qd5 {[%clk 0:00:07.5]} 34. Ne2 {[%clk 0:00:03.9]} 34... Qxa2
{[%clk 0:00:06]} 35. Nf4 {[%clk 0:00:04.6]} 35... b3 {[%clk 0:00:06.1]} 36. Qc3
{[%clk 0:00:02.8]} 36... Qc2 {[%clk 0:00:05.1]} 37. Qf3 {[%clk 0:00:02.4]} 37...
b2 {[%clk 0:00:04.3]} 38. Nxe6 {[%clk 0:00:02.9]} 38... b1=Q {[%clk 0:00:04.9]}
39. Rxb1 {[%clk 0:00:03.5]} 39... Qxb1+ {[%clk 0:00:05.8]} 40. Kh2 {[%clk
0:00:04.2]} 40... Qe4 {[%clk 0:00:06.1]} 41. Qg3 {[%clk 0:00:03.9]} 41... g5
{[%clk 0:00:03.4]} 42. h4 {[%clk 0:00:03]} 42... f4 {[%clk 0:00:03.1]} 43. Qg4
{[%clk 0:00:03.2]} 43... Qg6 {[%clk 0:00:03.5]} 44. h5 {[%clk 0:00:03.1]} 44...
Qf7 {[%clk 0:00:03.2]} 45. Nxf4 {[%clk 0:00:03.6]} 45... Bf6 {[%clk 0:00:02.9]}
46. Ng6 {[%clk 0:00:03.6]} 46... Bxe5+ {[%clk 0:00:02.9]} 47. dxe5 {[%clk
0:00:04.5]} 47... Re8 {[%clk 0:00:02.6]} 48. e6 {[%clk 0:00:04.8]} 48... Rxe6
{[%clk 0:00:02.8]} 49. Qd4 {[%clk 0:00:05.3]} 49... Rae8 {[%clk 0:00:02.9]} 50.
f3 {[%clk 0:00:05.4]} 50... Qg7 {[%clk 0:00:02.7]} 51. Qc4 {[%clk 0:00:05.4]}
51... a4 {[%clk 0:00:03]} 52. Qxa4 {[%clk 0:00:05.5]} 52... Rxg6 {[%clk
0:00:03.4]} 53. hxg6 {[%clk 0:00:05.1]} 53... Qxg6 {[%clk 0:00:04.3]} 54. Qc4+
{[%clk 0:00:05.4]} 54... Qe6 {[%clk 0:00:04.7]} 55. Qd4 {[%clk 0:00:05.3]} 55...
Qe5+ {[%clk 0:00:05.2]} 56. Qxe5 {[%clk 0:00:05.7]} 56... Rxe5 {[%clk
0:00:06.1]} 0-1

[Event "Late-Titled-Tuesday-Blitz-April-23-2024"]
[Site "Chess.com"]
[Date "2024.04.23"]
[Round "4"]
[White "venturov"]
[Black "ZachHKL"]
[Result "1-0"]
[WhiteElo "2503"]
[BlackElo "2289"]
[TimeControl "180+1"]
[EndTime "14:41:27 PDT"]
[Termination "venturov won by resignation"]

1. e4 {[%clk 0:03:00.9]} 1... c5 {[%clk 0:02:59.3]} 2. Nf3 {[%clk 0:03:00.4]}
2... d6 {[%clk 0:02:59.1]} 3. d4 {[%clk 0:03:00.6]} 3... cxd4 {[%clk 0:02:57.7]}
4. Nxd4 {[%clk 0:03:01.5]} 4... Nf6 {[%clk 0:02:57.1]} 5. Nc3 {[%clk 0:03:01.9]}
5... Nc6 {[%clk 0:02:57.2]} 6. Bc4 {[%clk 0:03:01]} 6... Bd7 {[%clk 0:02:53.3]}
7. O-O {[%clk 0:02:59.8]} 7... Rc8 {[%clk 0:02:53.7]} 8. Bb3 {[%clk 0:02:59]}
8... Na5 {[%clk 0:02:51.1]} 9. Re1 {[%clk 0:02:58]} 9... Nxb3 {[%clk 0:02:50.7]}
10. axb3 {[%clk 0:02:58.9]} 10... g6 {[%clk 0:02:46.9]} 11. Rxa7 {[%clk
0:02:57]} 11... Qb6 {[%clk 0:02:44.5]} 12. Ra1 {[%clk 0:02:52]} 12... Bg7 {[%clk
0:02:43.4]} 13. Be3 {[%clk 0:02:43.8]} 13... Qd8 {[%clk 0:02:28.5]} 14. h3
{[%clk 0:02:28]} 14... O-O {[%clk 0:02:27.5]} 15. Ra7 {[%clk 0:02:16.4]} 15...
Rb8 {[%clk 0:02:14.9]} 16. Qa1 {[%clk 0:02:13.8]} 16... Qc8 {[%clk 0:02:01.7]}
17. Qa5 {[%clk 0:02:07.1]} 17... b6 {[%clk 0:01:58]} 18. Qb4 {[%clk 0:02:06.5]}
18... Rd8 {[%clk 0:01:41.5]} 19. Rea1 {[%clk 0:02:02.7]} 19... Ne8 {[%clk
0:01:27.7]} 20. Nd5 {[%clk 0:01:55.2]} 20... Kf8 {[%clk 0:01:25.8]} 21. c3
{[%clk 0:01:42.1]} 21... Qc5 {[%clk 0:01:05.1]} 22. Nc2 {[%clk 0:01:23.8]} 22...
Qxb4 {[%clk 0:01:02.6]} 23. Ncxb4 {[%clk 0:01:24.7]} 23... e6 {[%clk 0:01:02.2]}
24. Nxb6 {[%clk 0:01:22.5]} 24... Bb5 {[%clk 0:01:01.2]} 25. c4 {[%clk
0:01:18.5]} 25... d5 {[%clk 0:00:54.4]} 26. cxb5 {[%clk 0:01:17.2]} 26... d4
{[%clk 0:00:54.7]} 27. Bf4 {[%clk 0:01:13.5]} 27... Rxb6 {[%clk 0:00:53.9]} 28.
Nc6 {[%clk 0:01:07.6]} 28... Rc8 {[%clk 0:00:49.6]} 29. Ra8 {[%clk 0:01:06.2]}
29... Rcxc6 {[%clk 0:00:28.8]} 30. bxc6 {[%clk 0:01:01.8]} 30... Rxc6 {[%clk
0:00:29.7]} 31. Rd8 {[%clk 0:00:55.8]} 31... Ke7 {[%clk 0:00:27.8]} 32. Raa8
{[%clk 0:00:55]} 32... Nf6 {[%clk 0:00:20.4]} 33. e5 {[%clk 0:00:45.1]} 33...
Nd5 {[%clk 0:00:19.7]} 34. Bg5+ {[%clk 0:00:43.5]} 34... f6 {[%clk 0:00:18.6]}
35. exf6+ {[%clk 0:00:39.2]} 35... Bxf6 {[%clk 0:00:18.1]} 36. Bxf6+ {[%clk
0:00:39]} 36... Kxf6 {[%clk 0:00:18.5]} 37. Ra1 {[%clk 0:00:31.6]} 37... d3
{[%clk 0:00:18.2]} 38. Rd1 {[%clk 0:00:32.2]} 38... Nb4 {[%clk 0:00:17.7]} 39.
Rd4 {[%clk 0:00:29.3]} 39... Rb6 {[%clk 0:00:15.4]} 40. f4 {[%clk 0:00:25.7]}
40... e5 {[%clk 0:00:13.6]} 41. fxe5+ {[%clk 0:00:21.9]} 41... Kxe5 {[%clk
0:00:14.5]} 42. Rd7 {[%clk 0:00:21.2]} 42... Ke4 {[%clk 0:00:13.2]} 43. Kf2
{[%clk 0:00:20]} 43... Rf6+ {[%clk 0:00:13]} 44. Ke1 {[%clk 0:00:18.7]} 44...
Re6 {[%clk 0:00:12.2]} 45. Kd2 {[%clk 0:00:18.3]} 45... Rf6 {[%clk 0:00:12.1]}
46. Re7+ {[%clk 0:00:17.2]} 46... Kd4 {[%clk 0:00:11.7]} 47. Rd7+ {[%clk
0:00:17.4]} 47... Nd5 {[%clk 0:00:12]} 48. Rxd5+ {[%clk 0:00:13.2]} 48... Kxd5
{[%clk 0:00:11.8]} 49. Kxd3 {[%clk 0:00:14]} 49... Rf2 {[%clk 0:00:10.8]} 50.
Rd2 {[%clk 0:00:14.6]} 50... Rf5 {[%clk 0:00:10.5]} 51. Rc2 {[%clk 0:00:14.5]}
51... Rf7 {[%clk 0:00:08.7]} 52. b4 {[%clk 0:00:14.4]} 52... Rd7 {[%clk
0:00:08.2]} 53. Kc3 {[%clk 0:00:14.4]} 53... Rb7 {[%clk 0:00:05.8]} 54. Rd2+
{[%clk 0:00:13.7]} 54... Kc6 {[%clk 0:00:05.9]} 55. Kc4 {[%clk 0:00:14.4]} 55...
Rf7 {[%clk 0:00:05.5]} 56. b5+ {[%clk 0:00:13.8]} 56... Kb7 {[%clk 0:00:06.1]}
57. Kc5 {[%clk 0:00:13.1]} 57... Rf5+ {[%clk 0:00:05.3]} 58. Rd5 {[%clk
0:00:13.8]} 58... Rf7 {[%clk 0:00:06.2]} 59. b6 {[%clk 0:00:13.1]} 59... Re7
{[%clk 0:00:05.3]} 60. Kb5 {[%clk 0:00:13.3]} 60... Rf7 {[%clk 0:00:04.5]} 61.
Rc5 {[%clk 0:00:13.8]} 61... Rf8 {[%clk 0:00:04.7]} 62. Rc7+ {[%clk 0:00:14.1]}
62... Kb8 {[%clk 0:00:05.2]} 63. Rxh7 {[%clk 0:00:14.4]} 63... Rf5+ {[%clk
0:00:04.8]} 64. Ka6 {[%clk 0:00:14.7]} 64... Rf8 {[%clk 0:00:05.5]} 65. b4
{[%clk 0:00:14]} 65... Rc8 {[%clk 0:00:05.1]} 66. Rb7+ {[%clk 0:00:13.9]} 66...
Ka8 {[%clk 0:00:04.9]} 67. Rg7 {[%clk 0:00:14.6]} 67... Kb8 {[%clk 0:00:05.8]}
68. Rxg6 {[%clk 0:00:15]} 1-0